Cogmind - Beta 13 *** ADVENTURER MODE // 2024.04.04 @ 16:18:21 Player: hampa Result: Self-destructed Performance ------------- Evolutions (2) 1000 Regions Visited (3) 600 Robots Destroyed (16) 80 Value Destroyed (386) 386 Prototype IDs (1) 20 Alien Tech Used (0) 0 Bonus (0) 0 TOTAL SCORE: 2086 Bonus ------- None Cogmind --------- Core Integrity 509/550 Matter 54/300 Energy 275/275 System Corruption 0% Temperature Cool (0) Movement Flying (29) Location -8/Materials Parts ------- > --- POWER (2) -------- Deuterium Engine > --- PROPULSION (4) --- VTOL Module Improved Flight Unit Xenon Bombardment Thruster Xenon Bombardment Thruster > --- UTILITY (3) ------ Weight Redist. System Sensor Array Signal Interpreter > --- WEAPON (2) ------- Assault Rifle > --- INVENTORY (5) ---- VTOL Module VTOL Module Advanced Visual Processing Unit Terrain Scanner ECM Suite Peak State ------------ > --- POWER ------------ Deuterium Engine Light Nuclear Core > --- PROPULSION ------- VTOL Module Improved Flight Unit Xenon Bombardment Thruster Xenon Bombardment Thruster > --- UTILITY ---------- Weight Redist. System Sensor Array Signal Interpreter > --- WEAPON ----------- Assault Rifle Mining Laser > --- INVENTORY -------- Hover Unit VTOL Module VTOL Module Terrain Scanner ECM Suite [Rating: 25] Favorites ----------- Power Light Nuclear Core Engine Light Ion Engine Power Core Light Nuclear Core Propulsion Wheel Wheel Wheel Hover Unit Hover Unit Flight Unit VTOL Module Utility Signal Interpreter Device Sensor Array Storage Small Storage Unit Processor Signal Interpreter Weapon Assault Rifle Energy Gun Medium Laser Ballistic Gun Assault Rifle Special Weapon Mining Laser Special Melee Weapon Datajack Build | -11 -10 -9 -8 ------- Run | Yrd Mat Mat Mat Slots Evolved 4 | . . 2 2 Power 1 | . . . 1 Propulsion 2 | . . 1 1 Utility 1 | . . 1 . Weapon . | . . . . Parts Attached 55 | 6 33 6 10 Power 5 | 1 2 . 2 Engine 2 | 1 . . 1 Core 3 | . 2 . 1 Reactor . | . . . . Propulsion 19 | 2 10 3 4 Treads . | . . . . Leg . | . . . . Wheel 9 | 2 7 . . Hover 3 | . 3 . . Flight 7 | . . 3 4 Utility 16 | 1 11 3 1 Device 8 | . 4 3 1 Storage 5 | 1 4 . . Processor 3 | . 3 . . Hackware . | . . . . Protection . | . . . . Artifact . | . . . . Weapon 15 | 2 10 . 3 Energy Gun 7 | 2 5 . . Energy Cannon . | . . . . Ballistic Gun 4 | . 3 . 1 Ballistic Cannon . | . . . . Launcher . | . . . . Special Weapon 3 | . 1 . 2 Impact Weapon . | . . . . Slashing Weapon . | . . . . Piercing Weapon . | . . . . Special Melee Weapon 1 | . 1 . . Unidentified Prototypes 1 | . . . 1 Parts Lost 2 | . 1 . 1 Power 1 | . . . 1 Propulsion 1 | . 1 . . Utility . | . . . . Weapon . | . . . . Highest Loss Streak 1 | . 1 . 1 To Critical Strikes . | . . . . Average Slot Usage (%) 96 | . 97 99 82 Engine 1 | . . . 4 Core 12 | . 13 11 6 Wheel 18 | . 22 . . Hover 3 | . 4 1 . Flight 6 | . . 30 31 Device 13 | . 11 22 18 Storage 4 | . 6 . . Processor 10 | . 10 11 9 Energy Gun 14 | . 17 . . Ballistic Gun 10 | . 8 22 8 Special Weapon 1 | . . . 4 Naked Turns . | . . . . Heaviest Build 19 | 11 19 12 18 Greatest Support 32 | 20 32 12 27 Greatest Overweight (x) 3 | . 3 . . Average Overweight (x) . | . . . . Largest Inventory Capacity 10 | 8 10 5 5 Average Capacity 6 | 7 6 5 5 Most Carried 10 | 6 10 5 5 Average Carried 5 | 3 6 4 4 Final Capacity 8 | 8 5 5 5 Final Carried 6 | 6 5 5 5 Class Distribution -------------------- 56% | Mutant 28% | Scavenger-Mutant 15% | Sprinter Dominant Class ---------------- Mutant | -10/Materials Sprinter | -9/Materials Sprinter | -8/Materials Resources | -11 -10 -9 -8 ----------- Run | Yrd Mat Mat Mat Matter Collected 560 | 214 329 17 . Remotely . | . . . . Salvage Created 619 | . 542 77 . Parts 33 | . 27 6 . Haulers Intercepted 3 | . 2 1 . Recyclers Shooed . | . . . . Parts Field Recycled . | . . . . Retrieved Matter . | . . . . Parts Self-Destructed . | . . . . Prevented . | . . . . Kills | -11 -10 -9 -8 ------- Run | Yrd Mat Mat Mat Combat Hostiles Destroyed 8 | . 8 . . Guns 7 | . 7 . . Classes Destroyed 4 | . 4 . . Builder 1 | . 1 . . Hauler 3 | . 2 1 . Watcher 4 | . 3 1 . Grunt 8 | . 8 . . Best Kill Streak 3 | . 3 2 . Combat Bots Only 3 | . 3 . . Max Kills in Single Turn 1 | . 1 1 . Gunslinging . | . . . . Exploded . | . . . . Melee . | . . . . Uniques/NPCs Destroyed . | . . . . Combat | -11 -10 -9 -8 -------- Run | Yrd Mat Mat Mat Hostile Shots Fired 81 | . 32 6 43 Missed 34 | . 4 4 26 Damage Taken 490 | . 330 18 142 Core 135 | . 94 . 41 Absorbed by Shields . | . . . . Ignored by Resistances 149 | . 99 6 44 Core Remaining (%) 87 | 100 62 100 . Volleys Fired 67 | . 50 4 13 Largest 2 | . 2 2 1 Hottest 100 | . 100 40 100 Shots Fired 109 | . 88 8 13 Gun 98 | . 82 8 8 Cannon . | . . . . Launcher . | . . . . Special 11 | . 6 . 5 Kinetic 22 | . 6 8 8 Thermal 87 | . 82 . 5 Explosive . | . . . . Electromagnetic . | . . . . Robot Hit Streak 17 | . 17 9 7 Robot Miss Streak 2 | . 2 1 . Penetration Max . | . . . . Secondary Targets . | . . . . Shots Hit Robots 77 | . 68 6 3 Core Hits 30 | . 27 3 . Critical Kills . | . . . . Critical Parts Destroyed . | . . . . Critical Strikes 4 | . 4 . . Burn 4 | . 4 . . Melee Attacks 1 | . 1 . . Impact . | . . . . Slashing . | . . . . Piercing . | . . . . Sneak Attacks . | . . . . Combat Hostiles . | . . . . Follow-up Attacks . | . . . . Damage Inflicted 946 | . 836 75 35 Guns 946 | . 836 75 35 Cannons . | . . . . Explosions . | . . . . Melee . | . . . . Ramming . | . . . . Kinetic 179 | . 69 75 35 Thermal 767 | . 767 . . Explosive . | . . . . Electromagnetic . | . . . . Impact . | . . . . Slashing . | . . . . Piercing . | . . . . Highest Corruption . | . . . . Average Corruption . | . . . . Corruption Purged . | . . . . Corruption Blocked . | . . . . Overload Shots . | . . . . Overflow Damage . | . . . . Projectiles . | . . . . Explosions . | . . . . Melee . | . . . . Knockbacks . | . . . . Impact . | . . . . Kinetic . | . . . . Secondary . | . . . . Self-Inflicted Damage . | . . . . Shots . | . . . . Rammed . | . . . . Targets Rammed . | . . . . Kicked . | . . . . Crushed . | . . . . Highest Temperature 363 | . 363 . 51 Average Temperature 79 | . 89 . 16 Received Heat Transfer 294 | . 219 12 63 Siege Activations . | . . . . Robots Corrupted . | . . . . Combat Hostiles . | . . . . Parts Fried . | . . . . Impact Corruptions . | . . . . Robots Melted 1 | . 1 . . Combat Hostiles 1 | . 1 . . Parts Melted 4 | . 4 . . Heat Transferred 2377 | . 2377 . . Parts Sabotaged . | . . . . Parts Stolen . | . . . . Parts Stripped . | . . . . Power Chain Reactions . | . . . . Alert | -11 -10 -9 -8 ------- Run | Yrd Mat Mat Mat Peak Influence 218 | . 218 89 86 Initial 31 | . . . 31 Average 68 | . 79 35 55 Maximum Alert Level 1 | . 1 . . Low Security (%) 89 | 100 85 100 100 Level 1 10 | . 14 . . Level 2 . | . . . . Level 3 . | . . . . Level 4 . | . . . . Level 5 . | . . . . High Security . | . . . . Max Security . | . . . . Squads Dispatched 1 | . . 1 . Investigation . | . . . . Extermination . | . . . . Reinforcement 1 | . . 1 . Assault . | . . . . Garrison . | . . . . Intercept . | . . . . Searches Triggered . | . . . . Construction Impeded . | . . . . Haulers Reinforced . | . . . . Active Scanning Responses . | . . . . Cargo Convoy Interrupts . | . . . . Stealth | -11 -10 -9 -8 --------- Run | Yrd Mat Mat Mat Distress Signals 4 | . 1 2 1 Communications Jammed . | . . . . Distress Signals . | . . . . Times Spotted 42 | . 13 10 19 Peak Tracking Total 14 | . 4 5 14 Tactical Retreats 6 | . 1 2 3 Traps | -11 -10 -9 -8 ------- Run | Yrd Mat Mat Mat Traps Triggered 3 | . 3 . . Indirectly . | . . . . Trap Hack Attempts . | . . . . Triggered . | . . . . Disarmed . | . . . . Reprogrammed . | . . . . Reused . | . . . . Traps Extracted . | . . . . Installed . | . . . . Triggered . | . . . . Machines | -11 -10 -9 -8 ---------- Run | Yrd Mat Mat Mat Machines Disabled 1 | . 1 . . Max in Single Turn 1 | . 1 . . Machines Repaired . | . . . . Machines Dismantled . | . . . . Machines Sabotaged . | . . . . Overloaded Fab Kills . | . . . . Hacking | -11 -10 -9 -8 --------- Run | Yrd Mat Mat Mat Machines Accessed . | . . . . Terminals . | . . . . Fabricators . | . . . . Repair Stations . | . . . . Recycling Units . | . . . . Scanalyzers . | . . . . Garrison Access . | . . . . Total Hacks . | . . . . Successful . | . . . . Failed . | . . . . Catastrophic . | . . . . Database Lockouts . | . . . . Manual . | . . . . Terminals . | . . . . Fabricators . | . . . . Repair Stations . | . . . . Recycling Units . | . . . . Scanalyzers . | . . . . Garrison Access . | . . . . Terminal Hacks . | . . . . Fabricator Hacks . | . . . . Repair Station Hacks . | . . . . Recycling Unit Hacks . | . . . . Scanalyzer . | . . . . Garrison Access Hacks . | . . . . Unauthorized Hacks . | . . . . Terminals . | . . . . Fabricators . | . . . . Repair Stations . | . . . . Recycling Units . | . . . . Scanalyzers . | . . . . Garrison Access . | . . . . Data Cores Recovered . | . . . . Used . | . . . . Hacking Detections . | . . . . Full Trace Events . | . . . . Feedback Events . | . . . . Feedback Blocked . | . . . . Robot Schematics Acquired . | . . . . Robots Built . | . . . . Authchips . | . . . . Time . | . . . . Total Robot Build Rating . | . . . . Part Schematics Acquired . | . . . . Parts Built . | . . . . Authchips . | . . . . Time . | . . . . Total Part Build Rating . | . . . . Parts Repaired . | . . . . Time . | . . . . Parts Recycled . | . . . . Recycled Matter . | . . . . Retrieved Matter . | . . . . Retrieved Components . | . . . . Parts Scanalyzed . | . . . . Part Schematics Acquired . | . . . . Parts Damaged . | . . . . Bothacking | -11 -10 -9 -8 ------------ Run | Yrd Mat Mat Mat Used RIF Installer . | . . . . Robots Hacked 1 | . 1 . . Non-combat . | . . . . Combat 1 | . 1 . . Robot Hacks Applied 1 | . 1 . . parse_system 1 | . 1 . . Relay Couplers Released . | . . . . Fabnet Peak Effective % . | . . . . Robots Rewired . | . . . . Allies Hacked . | . . . . Hacks Repelled . | . . . . Allies | -11 -10 -9 -8 -------- Run | Yrd Mat Mat Mat Total Allies . | . . . . Largest Group . | . . . . Highest-Rated Group . | . . . . Highest-Rated Ally . | . . . . Total Orders . | . . . . Ally Attacks . | . . . . Total Damage . | . . . . Kills . | . . . . Allies Corrupted . | . . . . Allies Melted . | . . . . Intel | -11 -10 -9 -8 ------- Run | Yrd Mat Mat Mat Robot Analysis Total . | . . . . Derelict Logs Recovered . | . . . . Drone Launches . | . . . . Drone Recoveries . | . . . . Exploration | -11 -10 -9 -8 ------------- Run | Yrd Mat Mat Mat Turns Passed 1230 | 58 925 129 118 Spaces Moved 1326 | 52 806 307 161 Core 8 | 4 4 . . Treads . | . . . . Legs . | . . . . Wheels 610 | 48 562 . . Hover 252 | . 240 12 . Flight 456 | . . 295 161 Fastest Speed 27 | 50 56 29 27 Average Speed 58 | 77 74 30 29 Slowest Speed 200 | 80 200 56 30 Overloaded Moves . | . . . . Propulsion Burnouts . | . . . . Robots Hopped 1 | . . . 1 Cave-ins Triggered . | . . . . Exploration Rate (%) 35 | 3 83 36 18 Regions Visited 3 Branch Regions . Pre-discovered Areas . | . . . . Known Exits Taken 2 | . 1 1 . Unknown Exits Taken 1 | 1 . . . Scrap Searched . | . . . . Spaces Dug 11 | . 6 . 5 Terrain Destroyed 11 | . 6 . 5 Melee . | . . . . Projectile 11 | . 6 . 5 AOE . | . . . . Terrain Rammed . | . . . . Walls Destroyed . | . . . . Machines Disabled . | . . . . Actions | -11 -10 -9 -8 --------- Run | Yrd Mat Mat Mat Total 1639 | 69 1026 335 209 Wait 113 | . 91 9 13 Move 1321 | 51 805 306 159 Hop 1 | . . . 1 Pick Up 51 | 12 28 6 5 Fast Attach 8 | . 6 . 2 Attach 20 | 6 7 2 5 Detach 2 | . . . 2 Swap 27 | . 20 4 3 Drop 28 | . 18 4 6 Fire 67 | . 50 4 13 Melee 1 | . 1 . . Ram . | . . . . Kick . | . . . . Crush . | . . . . Escape Stasis . | . . . . Rewire . | . . . . Trap . | . . . . Miscellaneous . | . . . . Route ------- -11/Scrapyard -10/Materials (discovered 3 exits: *Mat x2 / *Min) -9/Materials (discovered 2 exits: *Mat / *Min) -8/Materials History --------- Turn | Location | Event 32 | -11/Scrapyard | Discovered new exit (range 16) 59 | -11/Scrapyard | Entered Materials 306 | -10/Materials | Discovered new exit (range 8) 312 | -10/Materials | Build established: Mutant 353 | -10/Materials | Identified exit to Mines 856 | -10/Materials | Discovered new exit (range 13) 899 | -10/Materials | Identified exit to Materials 936 | -10/Materials | Discovered exit to Materials (range 16) 984 | -10/Materials | Entered another Materials area 984 | -9/Materials | Evolved 2 slots: Propulsion x1, Utility x1 1037 | -9/Materials | Discovered new exit (range 9) 1040 | -9/Materials | Identified exit to Mines 1102 | -9/Materials | Discovered new exit (range 15) 1113 | -9/Materials | Identified exit to Materials 1113 | -9/Materials | Entered another Materials area 1113 | -8/Materials | Evolved 2 slots: Power x1, Propulsion x1 1231 | -8/Materials | Self-destructed Last Messages --------------- Dropped Lgt. Nuclear Core. Acquired Lgt. Nuclear Core. Dropped Mining Laser. Dropped Assault Rifle. Acquired Mining Laser. W-25 Informer distress signal alerts nearby ally. Dropped ECM Suite. Acquired ECM Suite. K-01 Serf collects debris. Acquired Xenon Bombardment Thruster. Dropped Mining Laser. Electrolysis Chamber disabled. Lgt. Nuclear Core destroyed. Electrolysis Chamber disabled. Dropped Hover Unit. Acquired Adv. Visual Processing Unit. C-30 ARC bursts open, deploying its payload. S-10 Pest unfolds itself. Purification Channel disabled. Map ----- +----------------------------------------------------+ | ?????????????????????????????????????????????????? | | ?????????????????????????????????????????????????? | | ?????????????????????????????????????????????????? | | ?????????????????????????????????????????????????? | | ?????????????????????????????????????????????????? | | ??????????########???????????????????????????????? | | ??????????#====!!#????????????#??????????????????? | | ??????????# ==!!#??????????? #? ???????????????? | | ??????????# #?????????? #? ????????????????? | | ??## ###### ########## # ?????????????????? | | # | # ?????????????????? | | ??##+######## +??????????????????? | | ????????????# " x"" """ #??????????????????? | | ????????????# """ """ """ #??????????????????? | | ????????????# "" """ """ #??????????????????? | | ????????????# #??????????????????? | | ############# #??????????????????? | | [ # #??????????????????? | | # #??????????????????? | | # #??????????????????? | | """ + ###+####### ##s####??????????????????? | | """ # #? ????# #g%s #??????????????????? | | """ # #? ???# # ss #??????????????????? | | # #? ??# # " #??????????????????? | | # #? "" #?# # ""#??????????????????? | | ###### ## S"" #?# #@ """#??????????????????? | | ???# # ## "" #?# # """#??????????????????? | | ????# #########?# # "" #??????????????????? | | ????## #?????????# # """#??????????????????? | | ?????# #?????????# # ""#??????????????????? | | ????## ##????????/ # ""#??????????????????? | | ##### #????????# #! " #??????????????????? | | #????????# # #??????????????????? | | #????????# #######??????????????????? | | #????????? x????????????????????????? | | ##### #??????????????????????????????????????? | | ????#######?????????????x????????????????????????? | | ?????????????????????????????????????????????????? | | ?????????????????????????????????????????????????? | | ?????????????????????????????????????????????????? | | ?????????????????????????????????????????????????? | | ?????????????????????????????????????????????????? | | ?????????????????????????????????????????????????? | | ?????????????????????????????????????????????????? | | ?????????????????????????????????????????????????? | | ?????????????????????????????????????????????????? | | ?????????????????????????????????????????????????? | | ?????????????????????????????????????????????????? | | ?????????????????????????????????????????????????? | | ?????????????????????????????????????????????????? | +----------------------------------------------------+ Best States ------------- Heat Dissipation 31 Energy Generation 23 Energy Capacity 335 Matter Stores 300 Matter Capacity 300 Sight Range 16 Robot Scan Range 14 Terrain Scan Range 14 Terrain Scan Density 10 ECM Strength 1 Additional Mass Support 6 Resistance: KI 20 Resistance: TH 20 Resistance: EX 20 Resistance: EM 20 Resistance: I 20 Resistance: S 20 Resistance: P 20 Evasion (%) 64 Targeting Accuracy 5 Offensive Hacking 10 Item Schematics ----------------- None Robot Schematics ------------------ None Fabricated ------------ Nothing Alien Tech Used ----------------- None Achievements -------------- It's Just You Challenges ------------ None Game ------ Seed ThunderDisruptionPod Manual? 0 Play Time 00:44:25 Cumulative 14.2 hours Start 2024.04.03 @ 20:31:57 End 2024.04.04 @ 16:18:21 Sessions 3 Manual Loads 0 Difficulty Adventurer Special Mode None Game No. 2 Rogue 0 Adventurer 2 Explorer 0 Win Type - Total 0 Types 0/0/0/0/0/0/0/0/0 Lore% 0 Gallery% 10 Achievement% 12 Wizard Run 0 Options --------- Layout 1 ASCII 0 Keyboard 0 Movement Mouse Keybinds 0 Fullscreen 2 Font 24/Smallcaps Map View 50x35 Zoom Use 0% Tactical HUD 0 Map Filters NONE Filters NONE Steam 1 RUN: 7e9c44bd-34f3-4e7e-b9ad-37583d2e43c4